{"text_format":"1","workbook":"xlsx","n_sheets":6,"sheets":["info","dane administracyjne","preferencje","system ciepłowniczy","inwestycje","pytania opisowe"],"not_rendered":{"charts":0,"images":6,"macros":1,"external_links":0,"defined_names":0,"comments":0,"pivot_tables":0},"unopened":[],"bounds":{"document_bytes":16777216,"sheet_cells":100000,"rows_first":2000,"rows_last":500,"rows_between":2000,"halvings":0,"cell_chars":16384,"cell_head_chars":4096},"cells_cut":0,"cells_raw":0,"read":"whole","date_system":"1900"}

{"sheet":"info","index":0,"n_rows":27,"n_cols":2,"rows_kept":27,"cut":false,"hidden":false,"merged":[[24,1,24,12],[6,1,17,12],[26,1,26,12],[23,1,23,12],[21,1,21,12],[19,4,19,8]]}
[]
[]
[]
[]
[]
[]
[null,"Formularz Identyfikacji Projektu - FIP                                                \n     Ciepło-z-OZE \n-Systemy ciepłownicze współpracujące \nz odnawialnymi źródłami energii i magazynami ciepła \n                                                                                                                                                                                                                                                                                                                     Dla potencjalnych beneficjentów programu dotacji - przedsiębiorstw energetyki cieplnej "]
[]
[]
[]
[]
[]
[]
[]
[]
[]
[]
[]
[]
[]
[]
[null,"Celem formularza FiP jest zidentyfikowanie potencjalnych projektów zgodnych z założeniami przygotowywanego programu CiepłozOZE, w szczególności na potrzeby warsztatów dla zainteresowanych przedsiębiorców sektora ciepłowniczego. \nFormularz FIP umożliwi poznanie rozpatrywanych przedsięwzięć i/lub kierunków modernizacji firm ciepłowniczycych aktualnie rozważanych w przedsiębiorstwach, w celu osiągnięcia statusu EFEKTYWNEGO SYSTEMU CIEPŁOWNICZEGO (ESC) - pożądane do roku 2025, a najdalej w perspektywie 2030 r. \nZestawienie rozpatrywanych przedsięwzięć modernizacyjnych zostanie zweryfikowane przez NFOŚiGW wg zbioru kryteriów zaproponowanych w Raporcie IEO (z początku 2018), a następnie zweryfikowanych na Warsztatach w dniu 31.08.2018 pod kątem ich kompletności, zrozumienia przez beneficjentów Programu oraz realności wdrożenia w odpowiednich etapach Programu:\n- etap I   - lata 2018 - 2020\n- etap II  - lata 2020 - 2023\n- etap III - lata 2023 - 2030 "]
[]
[null,"Program CiepłozOZE ma na celu wsparcie budowy instalacji służących wytwarzaniu ciepła z odnawialnych źródeł energii:\n   - energii promieniowania słonecznego (o mocy cieplnej >2 MW), \n   - energii geotermalnej (o mocy > 2 MW), \n   - biomasy (o mocy > 5 MW i < 20 MW), \n   - urządzeń umożliwiających konwersję energii elektrycznej z OZE w ciepło (o mocy > 2 MW) \n   - oraz magazynów ciepła krótkoterminowych (minimalna zdolność magazynowania: 2 doby w stosunku do maksymalnych potrzeb odbiorców ciepła z systemu ciepłowniczego) i długoterminowych (minimalna zdolność akumulowania ciepła:  90 dni w stosunku do średnich potrzeb odbiorców. \nKosztem kwalifikownym jest też wykorzystanie ciepła odpadowego.\nWymagane są inwestycje  w co najmniej dwa rodzaje OZE, w tym minimum jedno źródło pogodowozależne, które zapewnią łącznie 50% udział energii z OZE  i ciepła odpadowego w wytwarzaniu i dostarczeniu ciepła do sieci oraz wymagana/preferowana będzie budowa magazynu ciepła długookresowego (sezonowy) lub krótkookresowego (dobowy).                                                                                                                                                                                        "]
[null,"Formularz jest autorskim opracowaniem wykonanym przez Instytut Energetyki Odnawialnej (IEO). W razie jakichkolwiek pytań, czy niejasności zachęcamy do kontaktu z biurem IEO biuro@ieo.pl  lub telefonicznie 22 825 46 52 z ekspertami odpowiedzialnymi: Aneta Więcka lub Bartłomiej Pejas"]
[]
[null,"UWAGA: Część przedsiębiorstw ciepłowniczych (członków IGCP) wypełniła na początku 2018 roku ankietę diagnostyczną, z preferencjami inwestowania w OZE, opracowaną przez IEO. Ankieta powstała przy współpracy IEO z IGCP. Wyniki tej ankiety zostały wykorzystane przez NFOŚiGW w pracach nad przygotowaniem programu CiepłozOZE. Poniżej przypominano istotę i kluczowe wyniki pierwszej ankiety. W ankiecie wzięły udział 44 podmioty operujące 49 systemami ciepłowniczymi, o łącznym potencjale wytwórczym na poziomie 7 440 MW, co stanowi 13,7% łącznej mocy zainstalowanej w polskich systemach ciepłowniczych. Z ankiet wynika, że przedsiębiorstwa ciepłownicze zamierzają korzystać z różnorodnych źródeł OZE. Stosunkowo największym zainteresowaniem ankietowanych przedsiębiorstw cieszą się kotły na paliwa z biomasy, które jako bezpośrednie zamienniki dla kotłów węglowych (do mocy 20 MW) mogą stanowić podstawę produkcji ciepłowniczej.  Dużym zainteresowaniem przedsiębiorców cieszyły się też magazyny ciepła oraz kolektory słoneczne. Na „dobowe” magazyny ciepła wskazywały właśnie w dużej mierze przedsiębiorstwa planujące budowę lub rozbudowę potencjału kogeneracji. Co ciekawe, plany te były często połączone z zainteresowaniem technologią Green Power-to-Heat, która to cieszy się zainteresowaniem porównywalnym (37%) do zainteresowania kolektorami słonecznymi.  "]

{"sheet":"dane administracyjne","index":1,"n_rows":21,"n_cols":12,"rows_kept":21,"cut":false,"hidden":true,"merged":[[15,0,15,9],[3,11,3,21],[0,0,3,9],[6,0,6,9],[9,0,9,9],[12,0,12,9]]}
["FIP - Formularz Identyfikacji Projektu                                                 \nCiepłozOZE - Systemy ciepłownicze współpracujące \nz odnawialnymi źródłami energii i magazynami ciepła"]
[null,null,null,null,null,null,null,null,null,null,null,"Ze względu na przepisy RODO Izba Ciepłownicza prosi o skasowanie tego arkusza z formularza FIP."]
[null,null,null,null,null,null,null,null,null,null,null,"Ponadto Izba uważa, że bez zgody odrębnej każdej firmy nie wolno przetwarzać jej danych, w tym osobowych"]
[null,null,null,null,null,null,null,null,null,null,null,"Ponadto FIP obecnym etapie i przy wielu uwagach merytorycznych, nie może być swoistą deklaracją zgody firmy ciepłowniczej na przetwarzanie jej danych. "]
[]
["1.Pełna nazwa przedsiębiorstwa/podmiotu"]
[]
[]
["2.Adres"]
[]
[]
["3.Miasta/gminy, na terenie których których funkcjonuje przedsiębiorstwo"]
[]
[]
["4. Nazwisko i nr tel./email osoby kontaktowej"]
[]
[]
[]
[]
["Dodatkowo eliminacja karty \"dane administracyjne\" pozwoli bardziej skupić się na pomyśle na projekt, a nie utożsamiać go z wiedzą o beneficjencie. "]
["Przypisanie pomysłu \"wspólnego\", gdyż wypracowanego na WARSZTATACH umożliwi świadomą identyfikację firmy w fazie przygotowania wniosku o wsparcie"]

{"sheet":"preferencje","index":2,"n_rows":87,"n_cols":47,"rows_kept":87,"cut":false,"hidden":false,"merged":[[22,7,22,8],[24,7,24,8],[25,7,25,8],[26,7,26,8],[27,7,27,8],[23,2,23,8],[26,2,26,4],[26,5,26,6],[27,2,27,4],[27,5,27,6],[28,2,28,4],[28,5,28,6],[28,7,28,8],[16,1,17,1],[20,2,20,8],[7,11,10,19],[5,10,7,10],[8,0,8,7],[25,2,25,4],[25,5,25,6],[18,2,18,4],[18,5,18,6],[5,0,6,7],[5,8,6,9],[15,2,15,4],[16,7,16,8],[17,7,17,8],[18,7,18,8],[19,7,19,8],[15,7,15,8],[15,5,15,6],[29,0,29,10],[30,0,32,10],[0,0,3,10],[19,2,19,4],[19,5,19,6],[21,2,21,4],[21,5,21,6],[22,2,22,4],[22,5,22,6],[24,2,24,4],[24,5,24,6],[16,2,16,4],[16,5,16,6],[17,2,17,4],[17,5,17,6],[21,7,21,8]]}
["FIP - Formularz Identyfikacji Projektu                                                 \nCiepłozOZE - Systemy ciepłownicze współpracujące \nz odnawialnymi źródłami energii i magazynami ciepła"]
[null,null,null,null,null,null,null,null,null,null,null,null,null,null,null,null,null,null,null,null,null,null,null,"- poprawnie uzupełnione/odpowiedź twierdząca",null,null,null,null,null,"- pytanie do uzupełnienia"]
[]
[null,null,null,null,null,null,null,null,null,null,null,null,null,null,null,null,null,null,null,null,null,null,null,"- prosimy nie uzupełniać/odpowiedź przecząca"]
[]
["Czy bylibyście Państwo zainteresowani skorzystaniem z programu dotacji dla ciepłownictwa na inwestycje w  OZE, sezonowe i krótkookresowe magazyny ciepła oraz wykorzystanie niezbilansowanej energii elektrycznej (Green Power-to-Heat)?",null,null,null,null,null,null,null,"TAK",null,{"$f":"IF(I6=\"TAK\",68,IF(I6=\"NIE\",4,33))","v":68}]
[]
[]
["Na wstępie prosimy o wskazanie technologii, którymi byliby Państwo szczególnie zainteresowani"]
[]
[]
[null,null,null,null,null,null,null,{"$f":"IF($I$6=\"NIE\",0,IF(OR(AT84=TRUE,AU84=TRUE,AV84=TRUE,AT86=TRUE,AU86=TRUE,AT87=TRUE,AU87=TRUE),100,10))","v":100}]
[]
[]
[null,null,null,null,null,null,null,null,"Parametry referencyjne  nakładów jednostkowych technologii OZE. Źródło: IEO"]
[null,"Lp.","Technologia",null,null,"Nakład jednostkowy wg użytkownika - proszę wpisać\n(tylko pola białe)",null,"Nakłady jednostkowe \nwg IEO (proszę nie zmieniać!)"]
[null,"1.","Kolektory słoneczne",null,null,null,null,"1,0 mln zł/MW",null,{"$f":"ISNUMBER(F17)","v":false},{"$f":"IF(J17,\"\",IF(F17=0,\"\",\"proszę wpisać liczbę!!!\"))","v":""}]
[null,null,"Pow. dost. pod zabudowę kolektorami słon.",null,null,"xxxxxxxxx",null,"3 m2 pow. gruntu/1 m2 pow. kol. słon."]
[null,"2.","Kotły na biomasę",null,null,2.1,null,"2,2 mln zł/MW",null,{"$f":"ISNUMBER(F19)","v":true},{"$f":"IF(J19,\"\",IF(F19=0,\"\",\"proszę wpisać liczbę!!!\"))","v":""}]
[null,"3.","Ciepłownicze moduły geotermalne",null,null,null,null,"1,6 mln zł/MW (bez odwiertu)",null,false,""]
[null,null,"Magazyny ciepła w systemach ciepłowniczych"]
[null,"4.","Długoterminowy",null,null,null,null,"80 zł/m3",null,false,{"$f":"IF(J22,\"\",IF(F22=0,\"\",\"proszę wpisać liczbę!!!\"))","v":""}]
[null,"5.","Krótkoterminowy",null,null,null,null,"2000zł/m3",null,false,""]
[null,null,"Green Power to Heat: kotły elektryczne i  podgrzewacze"]
[null,"6.a","Instalacje do 5 MW",null,null,null,null,"0,6 mln zł/MW",null,false,{"$f":"IF(J25,\"\",IF(F25=0,\"\",\"proszę wpisać liczbę!!!\"))","v":""}]
[null,"6.b","Instalacje w przedziale mocy: 5-10 MW   ",null,null,"xxxxxxxxx",null,"0,6 - 0,3 mln zł (liniowo)/MW"]
[null,"6.c","Instalacje powyżej 10 MW   ",null,null,null,null,"0,3 mln zł/MW",null,false,{"$f":"IF(J27,\"\",IF(F27=0,\"\",\"proszę wpisać liczbę!!!\"))","v":""}]
[null,"7.","Green Power to Heat: pompy ciepła",null,null,null,null,"3,0 mln zł/MW",null,false,""]
[null,"8.","Ciepło odpadowe",null,null,null,null,"x* mln zł/MW",null,false,""]
["*  nakłady inwestycyjne na ciepło odpadowe są zróżnicowane i zależą od specyfikacji technicznej instalacji oraz uwarunkowań lokalizacyjnych"]
["Pytania w ankiecie podzielone są tematycznie. Po uzupełnieniu informacji identyfikujących przedsiębiorstwo, prosimy o przejście do kolejnych zakładek."]
[]
[]
[]
[]
[]
[]
[]
[]
[]
[]
[]
[]
[]
[]
[]
[]
[]
[]
[]
[]
[]
[]
[]
[]
[]
[]
[]
[]
[]
[]
[]
[]
[]
[]
[]
[]
[]
[]
[]
[]
[]
[]
[]
[]
[]
[]
[]
[]
[]
[]
[]
[]
[null,null,null,null,null,null,null,null,null,null,null,null,null,null,null,null,null,null,null,null,null,null,null,null,null,null,null,null,null,null,null,null,null,null,null,null,null,null,null,null,null,null,null,null,null,false,true]
[]
[null,null,null,null,null,null,null,null,null,null,null,null,null,null,null,null,null,null,null,null,null,null,null,null,null,null,null,null,null,null,null,null,null,null,null,null,null,null,null,null,null,null,null,null,null,false,false]
[null,null,null,null,null,null,null,null,null,null,null,null,null,null,null,null,null,null,null,null,null,null,null,null,null,null,null,null,null,null,null,null,null,null,null,null,null,null,null,null,null,null,null,null,null,true,false]

{"sheet":"system ciepłowniczy","index":3,"n_rows":42,"n_cols":16,"rows_kept":42,"cut":false,"hidden":false,"merged":[[14,10,15,10],[16,7,16,9],[14,7,15,9],[20,0,20,4],[12,7,12,9],[13,7,13,9],[35,0,35,4],[38,0,38,4],[17,7,17,9],[26,0,26,4],[23,0,23,4],[32,0,32,4],[29,0,29,4],[19,7,19,9],[19,0,19,5],[21,7,21,10],[23,7,23,10],[25,7,25,10],[29,7,30,12],[10,7,10,9],[8,7,8,9],[9,7,9,9],[0,0,3,5],[0,7,3,12],[7,7,7,9],[6,0,7,4],[8,0,8,4],[11,0,11,3],[13,0,13,3],[15,0,15,3],[17,0,17,3],[9,0,9,4]]}
["FIP - Formularz Identyfikacji Projektu                                                 \nCiepłozOZE - Systemy ciepłownicze współpracujące \nz odnawialnymi źródłami energii i magazynami ciepła",null,null,null,null,null,null,"FIP - Formularz Identyfikacji Projektu                                                 \nCiepłozOZE - Systemy ciepłownicze współpracujące \nz odnawialnymi źródłami energii i magazynami ciepła"]
[null,null,null,null,null,null,null,null,null,null,null,null,null,null,null,"- poprawnie uzupełnione/odpowiedź twierdząca"]
[]
[null,null,null,null,null,null,null,null,null,null,null,null,null,null,null,"- prosimy nie uzupełniać/odpowiedź przecząca"]
["Informacje nt. systemu ciepłowniczego"]
[null,null,null,null,null,null,null,null,null,null,null,null,null,null,null,"- pytanie do uzupełnienia"]
["1. Moce zainstalowane w urządzeniach wytwórczych (jeżeli brak, proszę wpisać 0)",null,null,null,null,null,null," 7. Udział paliw w produkcji ciepła (SUMA kopalnych  i OZE) = 100%"]
[null,null,null,null,null,null,null,"paliwa kopalne",null,null,"%",{"$f":"SUM(K9:K11)","v":0.33}]
["1a. Moc elektryczna urządzeń wytwórczych, w [MWe]; \n",null,null,null,null,null,null,"węgiel",null,null,0.33,{"$f":"IF(preferencje!$I$6=\"NIE\",0,IF(K9=\"\",10,100))","v":100},{"$f":"IF(K9>100%, \"Bląd\", \"\")","v":""}]
[{"$f":"SUM(A12,A14,A16,A18)","v":0},null,null,null,null,{"$f":"IF(preferencje!$I$6=\"NIE\",0,IF(OR(AND('system ciepłowniczy'!A10<>0,OR(A12<>0,A14<>0,A16<>0,A18<>0))),100,IF(AND('system ciepłowniczy'!A10=0,AND(A12<>\"\",A14<>\"\",A16<>\"\",A18<>\"\")),100,10)))","v":100},null,"gaz",null,null,0,{"$f":"IF(preferencje!$I$6=\"NIE\",0,IF(K10=\"\",10,100))","v":100},""]
["kogeneracja",null,null,null,null,null,null,"olej opałowy",null,null,0,{"$f":"IF(preferencje!$I$6=\"NIE\",0,IF(K11=\"\",10,100))","v":100},""]
[0,null,null,null,null,{"$f":"IF(preferencje!$I$6=\"NIE\",0,IF('system ciepłowniczy'!A12<>\"\",100,10))","v":100}]
["turbiny kondensacyjne",null,null,null,null,null,null,"OZE (masz do rozdysponowania)",null,null,{"$f":"100%-SUM(K9:K11)","v":0.66999999999999993},{"$f":"SUM(K14:K20)","v":0.67},{"$f":"IF(L13>K13,\"za dużo!\",\"\")","v":""}]
[0,null,null,null,null,{"$f":"IF(preferencje!$I$6=\"NIE\",0,IF('system ciepłowniczy'!A14<>\"\",100,10))","v":100},null,"biomasa",null,null,0.67,{"$f":"IF(preferencje!$I$6=\"NIE\",0,IF(K14=\"\",10,100))","v":100},{"$f":"IF(K14>100%, \"Bląd\", \"\")","v":""}]
["silniki tłokowe",null,null,null,null,null,null,"energia geotermalna (nie pompy ciepła)",null,null,0,{"$f":"IF(preferencje!$I$6=\"NIE\",0,IF(K15=\"\",10,100))","v":100},""]
[0,null,null,null,null,{"$f":"IF(preferencje!$I$6=\"NIE\",0,IF('system ciepłowniczy'!A16<>\"\",100,10))","v":100},null,null,null,null,null,null,""]
["inne źródła energii elektrycznej (OZE - PV, turbiny wiatrowe)",null,null,null,null,null,null,"pompy ciepła",null,null,0,{"$f":"IF(preferencje!$I$6=\"NIE\",0,IF(K17=\"\",10,100))","v":100},""]
[0,null,null,null,null,{"$f":"IF(preferencje!$I$6=\"NIE\",0,IF('system ciepłowniczy'!A18<>\"\",100,10))","v":100},null,"energia słoneczna",null,null,0,{"$f":"IF(preferencje!$I$6=\"NIE\",0,IF(K18=\"\",10,100))","v":100},""]
[]
["1b. Moce zainstal. cieplna (kogeneracja + k.ciepłownicze) [MW]",null,null,null,null,null,null,"ciepło odpadowe",null,null,0,{"$f":"IF(preferencje!$I$6=\"NIE\",0,IF(K20=\"\",10,100))","v":100},{"$f":"IF(K20>100%, \"Bląd\", \"\")","v":""}]
[0,null,null,null,null,{"$f":"IF(preferencje!$I$6=\"NIE\",0,IF('system ciepłowniczy'!A21<>\"\",100,10))","v":100},null,null,null,null,null,{"$f":"SUM(L8,L13)","v":1},{"$f":"IF(L21<> 100%, \"błąd\",\"\")","v":""}]
[null,null,null,null,null,null,null,{"$f":"IF(L21<>100%,\"Nadal wady w bilansie paliw i OZE\",\"Bilans paliw+OZE+ciep_odpad jest OK\")","v":"Bilans paliw+OZE+ciep_odpad jest OK"},null,null,null,{"$f":"100%-L21","v":0}]
["2. Łączna moc zamówiona przez odbiorców [MW]"]
[25,null,null,null,null,{"$f":"IF(preferencje!$I$6=\"NIE\",0,IF('system ciepłowniczy'!A24<>\"\",100,10))","v":100},null,"Udział OZE w bilansie",null,null,null,{"$f":"SUM(K14:K18)","v":0.67}]
[]
["3. Średnia roczna produkcja ciepła brutto [GJ]",null,null,null,null,null,null,"Udział OZE + ciepło odpadowe w bilansie",null,null,null,{"$f":"SUM(K14:K18)+K20","v":0.67}]
[201400,null,null,null,null,{"$f":"IF(preferencje!$I$6=\"NIE\",0,IF('system ciepłowniczy'!A27<>\"\",100,10))","v":100}]
[null,null,null,null,null,null,null,"wg zasad formularza URE C-1, dz.1, poz.08"]
["4. Średnia roczna produkcja ciepła netto [GJ]"]
[194400,null,null,null,null,{"$f":"IF(preferencje!$I$6=\"NIE\",0,IF('system ciepłowniczy'!A30<>\"\",100,10))","v":100},null,"Netto = prod. brutto (po.03) pomniejszona o potrzeby własne (URE; w.08 - w.11)"]
[]
["5. Średnia roczna sprzedaż ciepła z sieci ciepłowniczej [GJ]",null,null,null,null,null,null,"Uwaga! Nie obejmuje bezpośredniej sprzedaży ciepła ze źródła (poza siecią)"]
[180000,null,null,null,null,{"$f":"IF(preferencje!$I$6=\"NIE\",0,IF('system ciepłowniczy'!A33<>\"\",100,10))","v":100}]
[]
["5a. W tym na potrzeby C.O. [GJ]"]
[{"$f":"A33*0.67","v":120600},null,null,null,null,{"$f":"IF(preferencje!$I$6=\"NIE\",0,IF('system ciepłowniczy'!A36<>\"\",100,10))","v":100}]
[]
["5b. W tym na potrzeby C.W.U. [GJ]"]
[36000,null,null,null,null,{"$f":"IF(preferencje!$I$6=\"NIE\",0,IF('system ciepłowniczy'!A39<>\"\",100,10))","v":100}]
[]
["6. Czy zapotrzebowanie na ciepło (jakie?) występuje latem?"]
[true,null,false,null,false,{"$f":"IF(preferencje!$I$6=\"NIE\",0,IF(OR(A42=TRUE,C42=TRUE,E42=TRUE),100,10))","v":100}]

{"sheet":"inwestycje","index":4,"n_rows":58,"n_cols":28,"rows_kept":58,"cut":false,"hidden":false,"merged":[[27,27,28,28],[38,26,38,28],[28,23,28,24],[28,25,28,26],[35,27,35,28],[29,27,29,28],[37,21,37,29],[39,21,39,29],[5,21,5,29],[20,25,20,26],[20,27,20,28],[20,21,20,22],[17,27,17,28],[19,23,19,24],[19,25,19,26],[19,27,19,28],[23,23,23,24],[22,23,22,24],[21,25,21,26],[29,21,29,22],[29,23,29,24],[29,25,29,26],[21,23,21,24],[6,11,6,12],[7,13,7,15],[7,16,7,18],[22,13,22,15],[11,25,11,26],[10,16,10,18],[8,27,8,28],[10,23,10,24],[6,13,6,15],[6,16,6,18],[7,23,7,24],[7,25,7,26],[7,27,7,28],[21,21,21,22],[17,21,17,22],[17,23,17,24],[17,25,17,26],[10,11,10,12],[10,13,10,15],[21,11,21,12],[11,27,11,28],[11,13,11,15],[11,16,11,18],[20,23,20,24],[0,0,3,9],[0,11,3,19],[10,27,10,28],[26,21,26,22],[26,23,26,24],[26,25,26,26],[26,27,26,28],[14,21,14,22],[14,23,14,24],[14,25,14,26],[14,27,14,28],[13,25,13,26],[13,27,13,28],[13,23,13,24],[7,0,7,8],[22,25,22,26],[22,27,22,28],[11,21,11,22],[11,23,11,24],[5,11,5,19],[16,23,16,24],[16,25,16,26],[16,27,16,28],[24,5,24,7],[18,2,18,4],[18,5,18,7],[19,5,19,7],[37,5,37,7],[14,11,14,19],[27,11,28,19],[29,11,30,19],[19,2,19,4],[32,11,32,19],[21,13,21,15],[21,16,21,18],[15,13,15,15],[15,16,15,18],[16,13,16,15],[16,16,16,18],[24,0,24,1],[24,2,24,4],[22,16,22,18],[37,0,37,1],[37,2,37,4],[38,2,38,4],[38,5,38,7],[57,13,58,18],[43,0,43,1],[43,2,43,4],[43,5,43,7],[44,2,44,4],[44,5,44,7],[48,13,49,18],[51,13,52,18],[54,13,55,18],[25,2,25,4],[25,5,25,7],[39,13,40,18],[42,13,43,18],[45,13,46,18],[0,21,3,29],[33,13,34,18],[36,13,37,18],[8,21,8,22],[8,23,8,24],[8,25,8,26],[10,25,10,26],[30,0,30,8],[31,0,31,1],[31,2,31,4],[31,5,31,7],[32,2,32,4],[32,5,32,7],[10,9,11,9],[12,0,13,8],[15,11,15,12],[17,0,17,9],[25,23,25,24],[25,25,25,26],[25,27,25,28],[23,25,23,26],[23,27,23,28],[23,21,23,22],[21,27,21,28]]}
["FIP - Formularz Identyfikacji Projektu                                                 \nCiepłozOZE - Systemy ciepłownicze współpracujące \nz odnawialnymi źródłami energii i magazynami ciepła",null,null,null,null,null,null,null,null,null,null,"FIP - Formularz Identyfikacji Projektu                                                 \nCiepłozOZE - Systemy ciepłownicze współpracujące \nz odnawialnymi źródłami energii i magazynami ciepła",null,null,null,null,null,null,null,null,null,"FIP - Formularz Identyfikacji Projektu                                                 \nCiepłozOZE - Systemy ciepłownicze współpracujące \nz odnawialnymi źródłami energii i magazynami ciepła"]
[]
[]
[]
["Informacje nt. inwestycji i planów inwestycyjnych"]
[null,null,null,null,null,null,null,null,null,null,null,"Magazyny ciepła",null,null,null,null,null,null,null,null,null,"Wstępny bilans i zestawienie nakładów inwestycyjnych"]
["1. Czy przedsiębiorstwo posiada status \"efektywnego systemu ciepłowniczego\"? ",null,null,null,null,null,null,null,null,null,null,"magazyn sezonowy",null,"pojemność [m3]",null,null,"sprawność, wg IEO"]
["NIE",null,null,null,null,null,null,null,null,{"$f":"IF(preferencje!$I$6=\"NIE\",0,IF(A8<>\"...\",100,10))","v":100},null,null,null,0,null,null,0.75,null,null,{"$f":"IF(preferencje!$I$6=\"...\",10,IF(OR(preferencje!$I$6=\"NIE\",preferencje!$AT$84=FALSE),0,IF(AND(N8<>\"\"),100,10)))","v":0},null,null,null,"CF [h/rok]",null,"r. uzysk",null,"CAPEX"]
[null,null,null,null,null,null,null,null,null,null,null,null,null,null,null,null,null,null,null,null,null,"biomasa",null,3000,null,{"$f":"C20*X9*3.6","v":129600},null,{"$f":"C20*preferencje!F19*10^6","v":25200000.000000004}]
["1a.Jeżeli TAK, w jaki sposób status ten został osiągnięty (kogeneracja, OZE, ciepło odpadowe, mix) ?"]
[false,null,false,null,null,false,null,false,null,{"$f":"IF(preferencje!$I$6=\"NIE\",0,IF(AND($A$8<>\"TAK\",$A$8<>\"NIE\"),10,IF($A$8=\"NIE\",100,IF(OR(A11=TRUE,C11=TRUE,F11=TRUE,H11=TRUE),100,10))))","v":100},null,"magazyn krótkoterminowy",null,"pojemność",null,null,"sprawność, wg IEO",null,null,null,null,null,null,"CF [h/rok]",null,"r. uzysk",null,"CAPEX"]
[null,null,null,null,null,null,null,null,null,null,null,null,null,0,null,null,0.85,null,null,{"$f":"IF(preferencje!$I$6=\"...\",10,IF(OR(preferencje!$I$6=\"NIE\",preferencje!$AT$86=FALSE),0,IF(AND(N12<>\"\"),100,10)))","v":0},null,"geotermia",null,0,null,{"$f":"C26*X12*3.6","v":0},null,{"$f":"C26*preferencje!F20*10^6","v":0}]
["1b.Jeżeli NIE, w jaki sposób status chcą Państwo osiągnąć w przyszłości (kogeneracja, OZE, ciepło odpadowe, mix) ?"]
[null,null,null,null,null,null,null,null,null,null,null,null,null,null,null,null,null,null,null,null,null,null,null,"CF [h/rok]",null,"r. uzysk",null,"CAPEX"]
[false,null,true,null,null,false,null,false,null,{"$f":"IF(preferencje!$I$6=\"NIE\",0,IF(AND($A$8<>\"TAK\",$A$8<>\"NIE\"),10,IF($A$8=\"TAK\",100,IF(OR(A15=TRUE,C15=TRUE,F15=TRUE,H15=TRUE),100,10))))","v":100},null,"Ciepło odpadowe* oraz ciepło użytkowe z kogeneracji (paliwa kopalne) ** ",null,null,null,null,null,null,null,null,null,"kolektory słoneczne",null,0,null,{"$f":"C33*X15*3.6","v":0},null,{"$f":"C33*preferencje!F17*10^6","v":0}]
[null,null,null,null,null,null,null,null,null,null,null,"kogeneracja",null,"planowana moc [MW]",null,null,"udział w cieple sieciowym"]
["2. Prosimy o wskazanie podstawowych informacji nt. planowanych inwestycji",null,null,null,null,null,null,null,null,null,null,null,null,0,null,null,{"$f":"IF(N17=\"\",\"-\",(N17*(SUM('system ciepłowniczy'!$A$30:$E$30)/SUM('system ciepłowniczy'!$A$27:$E$27)))/SUM('system ciepłowniczy'!$A$30:$E$30))","v":0},null,null,{"$f":"IF(AND(preferencje!$I$6<>\"NIE\",N17=\"\"),10,IF(AND(N17<>\"\",OR(O18<>FALSE,O19<>FALSE)),100,10))","v":10},null,null,null,"CF [h/rok]",null,"r. uzysk",null,"CAPEX"]
["OZE stabilne",null,null,null,null,null,null,null,null,null,null,null,null,null,false,null,null,null,null,null,null,"P2H + kocioł elektryczny",null,0,null,{"$f":"C39*X18*3.6","v":0},null,{"$f":"IF(C39<=5,preferencje!F25*10^6*C39,IF(C39>10,preferencje!F27*10^6*C39,(preferencje!F25+((C39-5)/(10-5))*((preferencje!F27-preferencje!F25)))*10^6*C39))","v":0}]
["biomasa",null,"planowana moc [MW]",null,null,"udział w cieple sieciowym",null,null,null,null,null,null,null,null,false]
[">5 MW oraz < 20 MW",null,12,null,null,{"$f":"IF(C20=\"\",\"-\",(Z9/SUM('system ciepłowniczy'!$A$30:$E$30)))","v":0.66666666666666663},null,null,null,{"$f":"IF(preferencje!$I$6=\"...\",10,IF(OR(preferencje!$I$6=\"NIE\",preferencje!$AU$84=FALSE),0,IF(AND(C20<>\"\",OR(D21<>FALSE,D22<>FALSE)),100,10)))","v":100},null,null,null,null,null,null,null,null,null,null,null,null,null,"CF [h/rok]",null,"r. uzysk",null,"CAPEX"]
[null,null,null,false,null,null,null,null,null,null,null,null,null,null,null,null,null,null,null,null,null,"P2H + pompa ciepła",null,0,null,{"$f":"C45*X21*3.6","v":0},null,{"$f":"C45*preferencje!F28*10^6","v":0}]
[null,null,null,true,null,null,null,null,null,null,null,"ciepło odpadowe",null,"planowana moc [MW]",null,null,"udział w cieple sieciowym"]
[null,null,null,null,null,null,null,null,null,null,null,null,null,0,null,null,{"$f":"IF(N23=\"\",\"-\",(Z30/SUM('system ciepłowniczy'!$A$30:$E$30)))","v":0},null,null,{"$f":"IF(AND(preferencje!$I$6<>\"NIE\",N23=\"\"),10,IF(AND(N23<>\"\",OR(O24<>FALSE,O25<>FALSE)),100,10))","v":100},null,null,null,null,null,"pojemność",null,"CAPEX"]
[null,null,null,null,null,null,null,null,null,null,null,null,null,null,true,null,null,null,null,null,null,"magazyn sezonowy",null,null,null,{"$f":"N8","v":0},null,{"$f":"Z24*preferencje!F22","v":0}]
["geotermia",null,"planowana moc [MW]",null,null,"udział w cieple sieciowym",null,null,null,null,null,null,null,null,false]
["> 2 MW",null,0,null,null,{"$f":"IF(C26=\"\",\"-\",(Z12)/SUM('system ciepłowniczy'!$A$30:$E$30))","v":0},null,null,null,{"$f":"IF(preferencje!$I$6=\"...\",10,IF(OR(preferencje!$I$6=\"NIE\",preferencje!$AU$86=FALSE),0,IF(AND(C26<>\"\",OR(D27<>FALSE,D28<>FALSE)),100,10)))","v":0},null,null,null,null,null,null,null,null,null,null,null,null,null,null,null,"pojemność",null,"CAPEX"]
[null,null,null,false,null,null,null,null,null,null,null,null,null,null,null,null,null,null,null,null,null,"magazyn krótkoterminowy",null,null,null,{"$f":"N12","v":0},null,{"$f":"N12*preferencje!F23","v":0}]
[null,null,null,false,null,null,null,null,null,null,null,"* - ciepło odpadowe zalicza się do kosztów kwalifikowanych; jego obecność w projekcie stanowi warunek wystarczający przyznania dofinansowania",null,null,null,null,null,null,null,null,null,null,null,null,null,null,null,"CAPEX"]
[null,null,null,null,null,null,null,null,null,null,null,null,null,null,null,null,null,null,null,null,null,null,null,"CF [h/rok]",null,"r. uzysk"]
[null,null,null,null,null,null,null,null,null,null,null,"** - źródła kogeneracyjne (oparte na paliwach kopalnych) nie zaliczają się do grupy źródeł objętch programem wsparcia, jednak stanowią wkład do osiągnięcia statusu ESC",null,null,null,null,null,null,null,null,null,"Ciepło odpadowe",null,0,null,{"$f":"N23*X30*3.6","v":0},null,{"$f":"N23*preferencje!F29*10^6","v":0}]
["OZE pogodowozależne"]
["kolektory słoneczne",null,"planowana moc [MW]",null,null,"udział w cieple sieciowym"]
["> 2 MW",null,0,null,null,{"$f":"IF(C33=\"\",\"-\",(Z15)/SUM('system ciepłowniczy'!$A$30:$E$30))","v":0},true,null,null,{"$f":"IF(preferencje!$I$6=\"...\",10,IF(OR(preferencje!$I$6=\"NIE\",preferencje!$AT$87=FALSE),0,IF(AND(C33<>\"\",OR(D34<>FALSE,D35<>FALSE)),100,10)))","v":100},null,"informacje lokalizacyjne (adres, nr ewidencyjny działki, krótki opis lokalizacji)"]
[null,null,null,false,null,null,null,null,null,null,null,"biomasa",null,"wg IGCP - to za wczesny etap wpisywania danych\ndot. Inwestora (firmy ciepłowniczej) - do decyzji inwestora",null,null,null,null,null,{"$f":"IF(AND(preferencje!$I$6<>\"NIE\",N34=\"\"),10,IF(AND(N34<>\"\"),100,10))","v":100}]
[null,null,null,true,null,null,null,null,null,null,null,null,null,null,null,null,null,null,null,null,null,"UDZIAŁ CIEPŁA Z OZE & CIEPŁA ODPADOWEGO (bez kogeneracji) W WOLUMENIE SPRZEDAŻY"]
[null,null,null,null,null,null,null,null,null,null,null,null,null,null,null,null,null,null,null,null,null,null,null,null,null,null,null,{"$f":"SUM(Q17,Q23,F20,F26,F33,F39,F45)","v":0.66666666666666663}]
[null,null,null,null,null,null,null,null,null,null,null,"geotermia",null,"wg IGCP - to za wczesny etap wpisywania danych\ndot. Inwestora (firmy ciepłowniczej) - do decyzji inwestora",null,null,null,null,null,{"$f":"IF(AND(preferencje!$I$6<>\"NIE\",N37=\"\"),10,IF(AND(N37<>\"\"),100,10))","v":100}]
["P2H + kocioł elektryczny",null,"planowana moc [MW]",null,null,"udział w cieple sieciowym",null,null,null,null,null,null,null,null,null,null,null,null,null,null,null,"WSTĘPNE, SZACUNKOWE NAKŁADY INWESTYCYJNE DO PROGRAMU \"CIEPŁO Z OZE\" - \nbez kosztu zakupu ciepła odpadowego i bez kogeneracji"]
[null,null,0,null,null,{"$f":"IF(C39=\"\",\"-\",(Z18/SUM('system ciepłowniczy'!$A$30:$E$30)))","v":0},null,null,null,{"$f":"IF(preferencje!$I$6=\"...\",10,IF(OR(preferencje!$I$6=\"NIE\",preferencje!$AU$87=FALSE),0,IF(AND(C39<>\"\",OR(D40<>FALSE,D41<>FALSE)),100,10)))","v":0},null,null,null,null,null,null,null,null,null,null,null,null,null,null,null,null,{"$f":"SUM(AB9,AB12,AB15,AB18,AB21,AB24,AB27)","v":25200000.000000004}]
[null,null,null,true,null,null,null,null,null,null,null,"pompy ciepła",null,"wg IGCP - to za wczesny etap wpisywania danych\ndot. Inwestora (firmy ciepłowniczej) - do decyzji inwestora",null,null,null,null,null,{"$f":"IF(AND(preferencje!$I$6<>\"NIE\",N40=\"\"),10,IF(AND(N40<>\"\"),100,10))","v":100}]
[null,null,null,false]
[]
[null,null,null,null,null,null,null,null,null,null,null,"kolektory słoneczne",null,"wg IGCP - to za wczesny etap wpisywania danych\ndot. Inwestora (firmy ciepłowniczej) - do decyzji inwestora",null,null,null,null,null,{"$f":"IF(AND(preferencje!$I$6<>\"NIE\",N43=\"\"),10,IF(AND(N43<>\"\"),100,10))","v":100}]
["P2H + pompa ciepła",null,"planowana moc [MW]",null,null,"udział w cieple sieciowym"]
[null,null,0,null,null,{"$f":"IF(C45=\"\",\"-\",(Z21/SUM('system ciepłowniczy'!$A$30:$E$30)))","v":0},null,null,null,{"$f":"IF(preferencje!$I$6=\"...\",10,IF(OR(preferencje!$I$6=\"NIE\",preferencje!$AU$87=FALSE),0,IF(AND(C45<>\"\",OR(D46<>FALSE,D47<>FALSE)),100,10)))","v":0}]
[null,null,null,false,null,null,null,null,null,null,null,"P2H + kocioł elektryczny",null,"wg IGCP - to za wczesny etap wpisywania danych\ndot. Inwestora (firmy ciepłowniczej) - do decyzji inwestora",null,null,null,null,null,{"$f":"IF(AND(preferencje!$I$6<>\"NIE\",N46=\"\"),10,IF(AND(N46<>\"\"),100,10))","v":100}]
[null,null,null,true]
[]
[null,null,null,null,null,null,null,null,null,null,null,"P2H + pompa ciepła",null,"wg IGCP - to za wczesny etap wpisywania danych\ndot. Inwestora (firmy ciepłowniczej) - do decyzji inwestora",null,null,null,null,null,{"$f":"IF(AND(preferencje!$I$6<>\"NIE\",N49=\"\"),10,IF(AND(N49<>\"\"),100,10))","v":100}]
[]
[]
[null,null,null,null,null,null,null,null,null,null,null,"magazyn sezonowy",null,"wg IGCP - to za wczesny etap wpisywania danych\ndot. Inwestora (firmy ciepłowniczej) - do decyzji inwestora",null,null,null,null,null,{"$f":"IF(AND(preferencje!$I$6<>\"NIE\",N52=\"\"),10,IF(AND(N52<>\"\"),100,10))","v":100}]
[]
[]
[null,null,null,null,null,null,null,null,null,null,null,"magazyn krótkoterminowy",null,"wg IGCP - to za wczesny etap wpisywania danych\ndot. Inwestora (firmy ciepłowniczej) - do decyzji inwestora",null,null,null,null,null,{"$f":"IF(AND(preferencje!$I$6<>\"NIE\",N55=\"\"),10,IF(AND(N55<>\"\"),100,10))","v":100}]
[]
[]
[null,null,null,null,null,null,null,null,null,null,null,"ciepło odpadowe",null,"wg IGCP - to za wczesny etap wpisywania danych\ndot. Inwestora (firmy ciepłowniczej) - do decyzji inwestora",null,null,null,null,null,{"$f":"IF(AND(preferencje!$I$6<>\"NIE\",N58=\"\"),10,IF(AND(N58<>\"\"),100,10))","v":100}]

{"sheet":"pytania opisowe","index":5,"n_rows":23,"n_cols":1,"rows_kept":23,"cut":false,"hidden":false,"merged":[[0,0,3,9],[8,0,21,9],[24,0,37,9],[6,0,7,9],[22,0,23,9],[5,0,5,9]]}
["FIP - Formularz Identyfikacji Projektu                                                 \nCiepłozOZE - Systemy ciepłownicze współpracujące \nz odnawialnymi źródłami energii i magazynami ciepła"]
[]
[]
[]
[]
["Poniżej (pola jasnożółte) prosimy krótko opisać proponowany do realizacji projekt w ramach programu CiepłozOZE"]
["1. Jakiego rodzaju działania już podjęte w Firmie mogą być pomocne w ubieganiu się o wsparcie Programu 'Ciepło z OZE'? (istnieje strategia i/lub plan rozwoju; firma posiada dobre rozpoznanie otoczenia rynku ciepła i potencjalnych innych rynków ekspansji biznesowej, istnieje dobra sytuacja finansowa firmy; właściciele firny mogą dostarczyć gwarancji albo innych zabezpieczeń na rozwój?, inne czynniki - proszę wskazać jakie...?)"]
[]
[]
[]
[]
[]
[]
[]
[]
[]
[]
[]
[]
[]
[]
[]
["2. Jakie najważniejsze trudności dostrzegane (lub już zidentyfikowane) na etapie przygotowania/realizacji projektu? (prawne, regulacyjne, zarządcze, ekonomiczno-finansowe, bariery popytu wynikające z braku możliwości podniesienia ceny ciepła, brak możliwości rozwinięcia nowej palety usług dla odbiorców domowych i komercyjnych, inne czynniki, np. brak wiedzy technicznej, ekonomiczno-kosztowej i wdrożeniowej o nowych technologiach OZE implementowanych w Polsce i/lub UE?)"]